fUSD/lending_fUSD_20260502
["ID","MTS","AMOUNT","RATE_DAILY","PERIOD"]
[421443619,1777660240000,-383.17620003,0.00012,2]
[421443627,1777660240000,-1534.0,0.00012,2]
[421443617,1777660240000,-146221.23183499,0.00012,2]
[421443624,1777660240000,-1184.58048992,0.00012,2]
[421443622,1777660240000,-151.0,0.00012,2]
[421443625,1777660240000,-169.91787475,0.00012,2]
[421443621,1777660240000,-1534.0,0.00012,2]
[421443598,1777660240000,-278.38,0.00012,2]
[421443600,1777660240000,-1747.60115128,0.00012,2]
[421443615,1777660240000,-732081.11200559,0.00012,2]
[421443644,1777660240000,-151.0,0.00012,2]
[421443629,1777660240000,-151.0,0.00012,2]
[421443635,1777660240000,-1534.0,0.00012,2]
[421443664,1777660240000,-3658.38753098,0.00012,2]
[421443665,1777660240000,-7555.5,0.00012,2]
[421443662,1777660240000,-2000.0,0.00012,2]
[421443663,1777660240000,-562810.15391088,0.00012,2]
[421443657,1777660240000,-151.0,0.00012,2]
[421443658,1777660240000,-151.0,0.00012,2]
[421443659,1777660240000,-273.001364,0.00012,2]
[421443660,1777660240000,-307.0,0.00012,2]
[421443656,1777660240000,-151.0,0.00012,2]
[421443642,1777660240000,-200.0,0.00012,2]
[421443651,1777660240000,-150.0,0.00012,2]
[421443655,1777660240000,-151.0,0.00012,2]
[421443654,1777660240000,-151.0,0.00012,2]
[421443653,1777660240000,-151.0,0.00012,2]
[421443652,1777660240000,-151.0,0.00012,2]
[421443650,1777660240000,-151.0,0.00012,2]
[421443647,1777660240000,-151.0,0.00012,2]
[421443640,1777660240000,-165.341426,0.00012,2]
[421443661,1777660240000,-1233.87308635,0.00012,2]
[421443698,1777660243000,-1093.77893783,0.0001176,2]
[421443700,1777660243000,-3613.78687496,0.000119,2]
[421443701,1777660243000,-4500.0,0.000119,2]
[421443699,1777660243000,-727.89195611,0.0001176,2]
[421443704,1777660243000,-325.74304219,0.00012,2]
[421443702,1777660243000,-16.22554861,0.000119,2]
[421443706,1777660243000,-298.93946255,0.0001154,2]
[421443703,1777660243000,-292.07544429,0.000119,2]
[421443705,1777660243000,-356.75629422,0.00012,2]
[421443751,1777660246000,-1223414.75065796,0.00012,2]
[421443749,1777660246000,-750.06053745,0.0001154,2]
[421443747,1777660246000,-57.27318811,0.0001,2]
[421443750,1777660246000,-1457.07791466,0.0001176,2]
[421443748,1777660246000,-995.41142559,0.0001,2]
[421443758,1777660248000,-547.44,0.00012,2]
[421443756,1777660248000,-1706.58909905,0.00012,2]
[421443757,1777660248000,-355.6873997,0.00012,2]
[421443753,1777660248000,-454.93486168,0.00012,2]
[421443755,1777660248000,-2361.7007125,0.00012,2]
[421443754,1777660248000,-820.45155825,0.00012,2]
[421443752,1777660248000,-69629.53710299,0.00012,2]
[421444097,1777660294000,158.33,4.828e-05,2]
[421444096,1777660294000,158.33,4.457e-05,2]
[421444102,1777660295000,158.33,6.685e-05,2]
[421444101,1777660295000,158.33,6.314e-05,2]
[421444100,1777660295000,158.33,5.943e-05,2]
[421444099,1777660295000,158.33,5.571e-05,2]
[421444098,1777660295000,158.33,5.2e-05,2]
[421444106,1777660296000,158.33,8.171e-05,2]
[421444105,1777660296000,158.33,7.8e-05,2]
[421444104,1777660296000,158.33,7.428e-05,2]
[421444103,1777660296000,158.33,7.057e-05,2]
[421444110,1777660533000,6100.0,8.8e-05,3]
[421444111,1777660535000,12200.0,8.9e-05,3]
[421444113,1777660537000,6121.44444239,9e-05,3]
[421444112,1777660537000,12278.55555761,9e-05,3]
[421444114,1777660541000,607.0,0.0003,120]
[421444115,1777660620000,244.0,0.0002,120]
[421444116,1777660621000,1000.0,0.000166,120]
[421444117,1777660683000,244.0,0.0002,120]
[421444118,1777660684000,534.80424404,0.000166,120]
[421444119,1777660687000,18674.67700334,0.00030137,120]
[421444125,1777661076000,152.47,4.739e-05,2]
[421444127,1777661076000,152.47,5.924e-05,2]
[421444126,1777661076000,152.47,5.332e-05,2]
[421444131,1777661077000,152.47,8.294e-05,2]
[421444130,1777661077000,152.47,7.701e-05,2]
[421444129,1777661077000,152.47,7.109e-05,2]
[421444128,1777661077000,152.47,6.516e-05,2]
[421444133,1777661091000,580.0,0.0003013,120]
[421444134,1777661107000,2500.0,0.0003013,120]
[421444135,1777661131000,2500.0,0.0003013,120]
[421444137,1777661146000,2500.0,0.0003013,120]
[421444139,1777661156000,2500.0,0.0003013,120]
[421444142,1777661233000,4300.0,8.8e-05,3]
[421444143,1777661235000,8600.0,8.9e-05,3]
[421444144,1777661237000,12900.0,9e-05,3]
[421444150,1777661354000,-4263.0,9.052e-05,2]
[421444146,1777661354000,-158.33,8.543e-05,2]
[421444148,1777661354000,-152.47,8.886e-05,2]
[421444149,1777661354000,-158.33,8.914e-05,2]
[421444151,1777661354000,-637.44,9.126e-05,2]
[421444147,1777661354000,-450.2,8.74e-05,2]
[421444155,1777661354000,-3605.217,9.19e-05,2]
[421444156,1777661354000,-276.064,9.19e-05,2]
[421444154,1777661354000,-300.0,9.189e-05,2]
[421444153,1777661354000,-1200.0,9.189e-05,2]
[421444157,1777661354000,-2081.7992,9.278e-05,2]
[421444152,1777661354000,-166.66,9.151e-05,2]
[421444198,1777661431000,-500.0,9.377e-05,2]
[421444186,1777661431000,-500.0,9.377e-05,2]
[421444188,1777661431000,-500.0,9.377e-05,2]
[421444197,1777661431000,-500.0,9.377e-05,2]
[421444187,1777661431000,-500.0,9.377e-05,2]
[421444178,1777661431000,-500.0,9.377e-05,2]
[421444177,1777661431000,-500.0,9.377e-05,2]
[421444181,1777661431000,-500.0,9.377e-05,2]
[421444182,1777661431000,-500.0,9.377e-05,2]
[421444175,1777661431000,-500.0,9.377e-05,2]
[421444176,1777661431000,-500.0,9.377e-05,2]
[421444180,1777661431000,-500.0,9.377e-05,2]
[421444199,1777661431000,-500.0,9.377e-05,2]
[421444172,1777661431000,-418.2008,9.278e-05,2]
[421444174,1777661431000,-1000.0,9.377e-05,2]
[421444183,1777661431000,-500.0,9.377e-05,2]
[421444184,1777661431000,-500.0,9.377e-05,2]
[421444173,1777661431000,-1200.0,9.376e-05,2]
[421444171,1777661431000,-18883.1683,9.277e-05,2]
[421444169,1777661431000,-2000.0,9.065e-05,2]
[421444170,1777661431000,-500.0,9.102e-05,2]
[421444179,1777661431000,-500.0,9.377e-05,2]
[421444191,1777661431000,-500.0,9.377e-05,2]
[421444185,1777661431000,-500.0,9.377e-05,2]
[421444192,1777661431000,-500.0,9.377e-05,2]
[421444196,1777661431000,-500.0,9.377e-05,2]
[421444220,1777661431000,-63258.92593705,9.378e-05,2]
[421444217,1777661431000,-166650.4318767,9.378e-05,2]
[421444215,1777661431000,-132542.04318755,9.378e-05,2]
[421444205,1777661431000,-500.0,9.377e-05,2]
[421444206,1777661431000,-500.0,9.377e-05,2]
[421444204,1777661431000,-357.78658777,9.377e-05,2]
[421444210,1777661431000,-500.0,9.377e-05,2]
[421444214,1777661431000,-15654.5109,9.378e-05,2]
[421444212,1777661431000,-150.0,9.377e-05,2]
[421444207,1777661431000,-500.0,9.377e-05,2]
[421444219,1777661431000,-249597.09434498,9.378e-05,2]
[421444203,1777661431000,-247.82444792,9.377e-05,2]
[421444209,1777661431000,-293.65295032,9.377e-05,2]
[421444208,1777661431000,-500.0,9.377e-05,2]
[421444202,1777661431000,-500.0,9.377e-05,2]
[421444201,1777661431000,-500.0,9.377e-05,2]
[421444200,1777661431000,-500.0,9.377e-05,2]
[421444189,1777661431000,-500.0,9.377e-05,2]
[421444194,1777661431000,-500.0,9.377e-05,2]
[421444195,1777661431000,-500.0,9.377e-05,2]
[421444190,1777661431000,-500.0,9.377e-05,2]
[421444193,1777661431000,-500.0,9.377e-05,2]
[421444211,1777661431000,-232.37838637,9.377e-05,2]
[421444242,1777661438000,-89781.80467481,9.378e-05,2]
[421444243,1777661438000,-482.26057152,9.378e-05,2]
[421444244,1777661438000,-36590.52591381,9.378e-05,2]
[421444246,1777661438000,-829.67010334,9.378e-05,2]
[421444247,1777661438000,-380.52932165,9.378e-05,2]
[421444248,1777661438000,-1655.39839742,9.378e-05,2]
[421444245,1777661438000,-48993.48432967,9.378e-05,2]
[421444270,1777661440000,-500.0,9.891e-05,2]
[421444268,1777661440000,-1193.86,9.67e-05,2]
[421444271,1777661440000,-166.66,9.906e-05,2]
[421444274,1777661440000,-573.79401602,0.0001,2]
[421444272,1777661440000,-6793.93301432,0.0001,2]
[421444273,1777661440000,-150.0,0.0001,2]
[421444280,1777661440000,-151.0,0.0001,2]
[421444282,1777661440000,-151.0,0.0001,2]
[421444281,1777661440000,-151.0,0.0001,2]
[421444277,1777661440000,-151.0,0.0001,2]
[421444279,1777661440000,-151.0,0.0001,2]
[421444269,1777661440000,-1000.0,9.67e-05,2]
[421444275,1777661440000,-541.14311483,0.0001,2]
[421444266,1777661440000,-1852.42,9.59e-05,2]
[421444278,1777661440000,-151.0,0.0001,2]
[421444265,1777661440000,-158.37,9.535e-05,2]
[421444264,1777661440000,-166.66,9.528e-05,2]
[421444263,1777661440000,-152.47,9.478e-05,2]
[421444260,1777661440000,-150.0,9.419e-05,2]
[421444262,1777661440000,-4772.32,9.478e-05,2]
[421444261,1777661440000,-424.00256677,9.423e-05,2]
[421444258,1777661440000,-150.0,9.419e-05,2]
[421444256,1777661440000,-150.0,9.419e-05,2]
[421444255,1777661440000,-250.0,9.397e-05,2]
[421444257,1777661440000,-150.0,9.419e-05,2]
[421444259,1777661440000,-150.0,9.419e-05,2]
[421444254,1777661440000,-193.0,9.397e-05,2]
[421444252,1777661440000,-2500.0,9.278e-05,2]
[421444253,1777661440000,-655017.9111415,9.378e-05,2]
[421444267,1777661440000,-200.0,9.59e-05,2]
[421444276,1777661440000,-592.80828585,0.0001,2]
[421444292,1777661440000,-250.0,0.00010055,2]
[421444293,1777661440000,-319.02580757,0.00010067,2]
[421444284,1777661440000,-151.0,0.0001,2]
[421444312,1777661440000,-999.99,0.00010475,2]
[421444310,1777661440000,-500.0,0.00010473,2]
[421444309,1777661440000,-500.0,0.00010473,2]
[421444314,1777661440000,-352.29,0.00010475,2]
[421444311,1777661440000,-2421.97,0.00010475,2]
[421444307,1777661440000,-500.0,0.00010473,2]
[421444304,1777661440000,-160.49845719,0.00010466,2]
[421444302,1777661440000,-188.98,0.00010426,2]
[421444303,1777661440000,-227.21153543,0.00010466,2]
[421444301,1777661440000,-157.47,0.00010411,2]
[421444300,1777661440000,-20904.92,0.00010325,2]
[421444306,1777661440000,-227.92477135,0.00010473,2]
[421444305,1777661440000,-154.60966813,0.00010466,2]
[421444313,1777661440000,-313.79,0.00010475,2]
[421444299,1777661440000,-255.0,0.00010314,2]
[421444283,1777661440000,-151.0,0.0001,2]
[421444294,1777661440000,-1841.21,0.00010167,2]
[421444285,1777661440000,-151.0,0.0001,2]
[421444286,1777661440000,-151.0,0.0001,2]
[421444297,1777661440000,-166.66,0.00010283,2]
[421444291,1777661440000,-265.54,0.00010027,2]
[421444290,1777661440000,-255.68,0.00010027,2]
[421444287,1777661440000,-151.0,0.0001,2]
[421444308,1777661440000,-500.48979342,0.00010473,2]
[421444289,1777661440000,-693.24,0.00010021,2]
[421444295,1777661440000,-2000.0,0.00010198,2]
[421444296,1777661440000,-637.44,0.00010267,2]
[421444298,1777661440000,-1680.0,0.00010313,2]
[421444288,1777661440000,-533.27773909,0.0001,2]
[421444365,1777661441000,-10652.17309792,0.0001153,2]
[421444355,1777661441000,-721.12765535,0.00011365,2]
[421444348,1777661441000,-1000.0,0.00011021,2]
[421444349,1777661441000,-7847.30485674,0.00011099,2]
[421444347,1777661441000,-500.0,0.00011021,2]
[421444353,1777661441000,-192.0,0.00011346,2]
[421444346,1777661441000,-500.0,0.00011014,2]
[421444345,1777661441000,-1000.0,0.00011,2]
[421444351,1777661441000,-2000.0,0.00011331,2]
[421444352,1777661441000,-842.0,0.00011345,2]
[421444354,1777661441000,-578.20924308,0.00011365,2]
[421444350,1777661441000,-7847.30485673,0.00011118,2]
[421444356,1777661441000,-9552.16786547,0.00011365,2]
[421444360,1777661441000,-209.40437684,0.00011365,2]
[421444364,1777661441000,-10272.10520533,0.00011475,2]
[421444361,1777661441000,-181.0801015,0.00011365,2]
[421444362,1777661441000,-637.44,0.00011408,2]
[421444357,1777661441000,-1428.38747117,0.00011365,2]
[421444358,1777661441000,-308.72592879,0.00011365,2]
[421444369,1777661441000,-623.0,0.0001154,2]
[421444366,1777661441000,-3533.0,0.0001154,2]
[421444368,1777661441000,-1049.0,0.0001154,2]
[421444370,1777661441000,-1267.0,0.0001154,2]
[421444367,1777661441000,-1350.0,0.0001154,2]
[421444377,1777661441000,-2333.37748605,0.00011608,2]
[421444343,1777661441000,-1000.0,0.00011,2]
[421444359,1777661441000,-151.0,0.00011365,2]
[421444344,1777661441000,-1000.0,0.00011,2]
[421444328,1777661441000,-9999.99,0.00010475,2]
[421444340,1777661441000,-1000.0,0.00011,2]
[421444317,1777661441000,-3864.93,0.00010475,2]
[421444316,1777661441000,-7025.49,0.00010475,2]
[421444318,1777661441000,-20122.33,0.00010475,2]
[421444315,1777661441000,-9999.99,0.00010475,2]
[421444319,1777661441000,-150.99,0.00010475,2]
[421444323,1777661441000,-499.99,0.00010475,2]
[421444322,1777661441000,-299.99,0.00010475,2]
[421444321,1777661441000,-29655.86,0.00010475,2]
[421444320,1777661441000,-9511.3,0.00010475,2]
[421444324,1777661441000,-9999.99,0.00010475,2]
[421444327,1777661441000,-707.64,0.00010475,2]
[421444326,1777661441000,-9999.99,0.00010475,2]
[421444342,1777661441000,-1000.0,0.00011,2]
[421444325,1777661441000,-1791.23,0.00010475,2]
[421444329,1777661441000,-24999.99,0.00010475,2]
[421444331,1777661441000,-638.0,0.00010658,2]
[421444330,1777661441000,-1117.0,0.0001057,2]
[421444339,1777661441000,-1000.0,0.00011,2]
[421444335,1777661441000,-150.0,0.00010959,2]
[421444333,1777661441000,-386014.91017727,0.000107,2]
[421444336,1777661441000,-150.0,0.00010989,2]
[421444337,1777661441000,-1000.0,0.00011,2]
[421444334,1777661441000,-17200.0,0.000109,3]
[421444341,1777661441000,-1000.0,0.00011,2]
[421444332,1777661441000,-166.66,0.00010661,2]
[421444338,1777661441000,-1000.0,0.00011,2]
[421444372,1777661441000,-562.936,0.0001154,2]
[421444371,1777661441000,-928.0,0.0001154,2]
[421444363,1777661441000,-9905.5980765,0.0001142,2]
[421444374,1777661441000,-11046.30350255,0.00011585,2]
[421444404,1777661441000,-106336.38554741,0.00012,2]
[421444410,1777661441000,-1058.24206,0.00012,2]
[421444406,1777661441000,-151.0,0.00012,2]
[421444407,1777661441000,-204.36892789,0.00012,2]
[421444412,1777661441000,-463.43654317,0.00012,2]
[421444409,1777661441000,-1058.24206,0.00012,2]
[421444411,1777661441000,-307.0,0.00012,2]
[421444416,1777661441000,-400.84506136,0.00012,2]
[421444417,1777661441000,-200.0,0.00012,2]
[421444426,1777661441000,-160.0,0.00012108,2]
[421444414,1777661441000,-1000.0,0.00012,2]
[421444415,1777661441000,-400.84506136,0.00012,2]
[421444418,1777661441000,-313.0,0.00012,2]
[421444420,1777661441000,-447.05472943,0.00012,2]
[421444419,1777661441000,-447.05472943,0.00012,2]
[421444421,1777661441000,-161.0,0.0001201,2]
[421444423,1777661441000,-150.0,0.00012073,2]
[421444422,1777661441000,-52535.24,0.00012055,2]
[421444424,1777661441000,-162.38278084,0.00012108,2]
[421444427,1777661441000,-160.0,0.00012108,2]
[421444429,1777661441000,-450.2,0.00012236,2]
[421444430,1777661441000,-166.66,0.00012335,2]
[421444428,1777661441000,-390.90162321,0.00012146,2]
[421444431,1777661441000,-1085.57,0.00012371,2]
[421444432,1777661441000,-6410.85,0.00012371,2]
[421444433,1777661441000,-150.0,0.00012373,2]
[421444376,1777661441000,-2574.52178692,0.00011608,2]
[421444408,1777661441000,-178.05873334,0.00012,2]
[421444402,1777661441000,-10298.5067918,0.00011998,2]
[421444425,1777661441000,-207.56351682,0.00012108,2]
[421444413,1777661441000,-463.43654317,0.00012,2]
[421444405,1777661441000,-200.0,0.00012,2]
[421444373,1777661441000,-502.19224822,0.00011568,2]
[421444389,1777661441000,-250.0,0.00011945,2]
[421444379,1777661441000,-6338.54634368,0.00011695,2]
[421444378,1777661441000,-11455.01673214,0.0001164,2]
[421444384,1777661441000,-720.76321464,0.000119,2]
[421444381,1777661441000,-1058.24206,0.0001188,2]
[421444387,1777661441000,-1481.23780761,0.00011913,2]
[421444388,1777661441000,-217.15233878,0.00011913,2]
[421444383,1777661441000,-1058.24207,0.0001189,2]
[421444385,1777661441000,-200.0,0.00011901,2]
[421444380,1777661441000,-4235.98364772,0.0001176,2]
[421444382,1777661441000,-1058.24206,0.0001188,2]
[421444386,1777661441000,-1058.24206,0.0001191,2]
[421444375,1777661441000,-3197.09421953,0.00011608,2]
[421444391,1777661441000,-400.0,0.0001197,2]
[421444397,1777661441000,-12842.7803708,0.00011998,2]
[421444398,1777661441000,-1405.0135429,0.00011998,2]
[421444399,1777661441000,-36206.3228502,0.00011998,2]
[421444400,1777661441000,-7021.8468067,0.00011998,2]
[421444396,1777661441000,-350.0,0.0001199,2]
[421444401,1777661441000,-912.4885132,0.00011998,2]
[421444403,1777661441000,-3632.8797862,0.00011998,2]
[421444393,1777661441000,-700.0,0.0001197,2]
[421444392,1777661441000,-400.0,0.0001197,2]
[421444395,1777661441000,-161.0,0.0001199,2]
[421444390,1777661441000,-962.56,0.00011967,2]
[421444394,1777661441000,-498.65571072,0.00011983,2]
[421444484,1777661442000,-1579.0,0.00012893,2]
[421444485,1777661442000,-1579.0,0.00012893,2]
[421444483,1777661442000,-162.0,0.00012893,2]
[421444481,1777661442000,-1579.0,0.00012893,2]
[421444489,1777661442000,-1579.0,0.00012893,2]
[421444490,1777661442000,-1579.0,0.00012893,2]
[421444482,1777661442000,-335.0,0.00012893,2]
[421444492,1777661442000,-3649.68067348,0.00012915,2]
[421444479,1777661442000,-1579.0,0.00012893,2]
[421444480,1777661442000,-1579.0,0.00012893,2]
[421444494,1777661442000,-3649.68067348,0.00012956,2]
[421444477,1777661442000,-162.0,0.00012893,2]
[421444491,1777661442000,-1569.0,0.00012893,2]
[421444493,1777661442000,-3649.68067348,0.00012919,2]
[421444496,1777661442000,-150.0,0.00012973,2]
[421444495,1777661442000,-7847.30485673,0.00012959,2]
[421444506,1777661442000,-3649.68067348,0.00013026,2]
[421444508,1777661442000,-3649.68067348,0.00013044,2]
[421444509,1777661442000,-3649.68067348,0.00013091,2]
[421444523,1777661442000,-3649.68067348,0.00013249,2]
[421444497,1777661442000,-3649.68067348,0.00012976,2]
[421444500,1777661442000,-5664.45137121,0.00013,2]
[421444498,1777661442000,-3649.68067348,0.00012999,2]
[421444502,1777661442000,-250.0,0.00013,2]
[421444511,1777661442000,-3649.68067348,0.00013116,2]
[421444514,1777661442000,-3649.68067348,0.00013158,2]
[421444513,1777661442000,-3649.68067348,0.00013144,2]
[421444475,1777661442000,-162.0,0.00012893,2]
[421444504,1777661442000,-272.53438397,0.00013009,2]
[421444474,1777661442000,-1568.0,0.00012893,2]
[421444438,1777661442000,-2000.0,0.00012464,2]
[421444461,1777661442000,-162.0,0.00012893,2]
[421444525,1777661442000,-3649.68067348,0.0001329,2]
[421444435,1777661442000,-1536.04360649,0.00012461,2]
[421444434,1777661442000,-192.0,0.00012384,2]
[421444436,1777661442000,-225.18697532,0.00012461,2]
[421444437,1777661442000,-350.0,0.00012462,2]
[421444440,1777661442000,-350.0,0.00012616,2]
[421444441,1777661442000,-3649.68067348,0.00012665,2]
[421444444,1777661442000,-3649.68067348,0.00012723,2]
[421444439,1777661442000,-637.44,0.00012549,2]
[421444445,1777661442000,-3649.68067348,0.00012748,2]
[421444450,1777661442000,-274.49,0.00012877,2]
[421444442,1777661442000,-150.0,0.00012673,2]
[421444451,1777661442000,-162.0,0.00012893,2]
[421444473,1777661442000,-1579.0,0.00012893,2]
[421444443,1777661442000,-3649.68067348,0.00012712,2]
[421444449,1777661442000,-3649.68067348,0.00012808,2]
[421444446,1777661442000,-311.92252672,0.00012796,2]
[421444448,1777661442000,-3649.68067348,0.00012804,2]
[421444453,1777661442000,-162.0,0.00012893,2]
[421444463,1777661442000,-162.0,0.00012893,2]
[421444452,1777661442000,-162.0,0.00012893,2]
[421444465,1777661442000,-162.0,0.00012893,2]
[421444455,1777661442000,-162.0,0.00012893,2]
[421444454,1777661442000,-162.0,0.00012893,2]
[421444467,1777661442000,-1579.0,0.00012893,2]
[421444457,1777661442000,-162.0,0.00012893,2]
[421444459,1777661442000,-162.0,0.00012893,2]
[421444470,1777661442000,-1579.0,0.00012893,2]
[421444447,1777661442000,-3649.68067348,0.00012797,2]
[421444522,1777661442000,-1262.49102206,0.00013223,2]
[421444563,1777661442000,-500.0,0.00013698,2]
[421444524,1777661442000,-150.0,0.00013273,2]
[421444564,1777661442000,-500.0,0.00013698,2]
[421444556,1777661442000,-500.0,0.00013698,2]
[421444553,1777661442000,-500.0,0.00013698,2]
[421444559,1777661442000,-500.0,0.00013698,2]
[421444555,1777661442000,-500.0,0.00013698,2]
[421444558,1777661442000,-500.0,0.00013698,2]
[421444560,1777661442000,-500.0,0.00013698,2]
[421444557,1777661442000,-500.0,0.00013698,2]
[421444562,1777661442000,-500.0,0.00013698,2]
[421444561,1777661442000,-500.0,0.00013698,2]
[421444566,1777661442000,-500.0,0.00013698,2]
[421444570,1777661442000,-500.0,0.00013698,2]
[421444568,1777661442000,-500.0,0.00013698,2]
[421444565,1777661442000,-500.0,0.00013698,2]
[421444571,1777661442000,-500.0,0.00013698,2]
[421444576,1777661442000,-287.89978889,0.00013698,2]
[421444572,1777661442000,-500.0,0.00013698,2]
[421444567,1777661442000,-500.0,0.00013698,2]
[421444573,1777661442000,-500.0,0.00013698,2]
[421444574,1777661442000,-500.0,0.00013698,2]
[421444575,1777661442000,-500.0,0.00013698,2]
[421444579,1777661442000,-500.0,0.00013698,2]
[421444580,1777661442000,-500.0,0.00013698,2]
[421444581,1777661442000,-500.0,0.00013698,2]
[421444578,1777661442000,-500.0,0.00013698,2]
[421444583,1777661442000,-500.0,0.00013698,2]
[421444582,1777661442000,-500.0,0.00013698,2]
[421444515,1777661442000,-3649.68067348,0.00013164,2]
[421444577,1777661442000,-500.0,0.00013698,2]
[421444554,1777661442000,-500.0,0.00013698,2]
[421444569,1777661442000,-500.0,0.00013698,2]
[421444547,1777661442000,-162.141956,0.00013653,2]
[421444549,1777661442000,-162.141956,0.00013653,2]
[421444520,1777661442000,-3649.68067348,0.00013212,2]
[421444521,1777661442000,-3649.68067348,0.00013222,2]
[421444519,1777661442000,-3649.68067348,0.00013206,2]
[421444527,1777661442000,-3649.68067348,0.00013314,2]
[421444528,1777661442000,-466.58,0.00013319,2]
[421444538,1777661442000,-466.60950616,0.000134,2]
[421444539,1777661442000,-962.56,0.00013462,2]
[421444530,1777661442000,-4119.43,0.00013323,2]
[421444532,1777661442000,-466.58,0.00013339,2]
[421444534,1777661442000,-3649.68067348,0.00013356,2]
[421444529,1777661442000,-935.83,0.00013323,2]
[421444535,1777661442000,-3649.68067348,0.00013357,2]
[421444537,1777661442000,-466.58,0.00013379,2]
[421444536,1777661442000,-466.58,0.00013359,2]
[421444517,1777661442000,-3649.68067348,0.00013198,2]
[421444546,1777661442000,-602.63926132,0.00013599,2]
[421444531,1777661442000,-152.0,0.00013337,7]
[421444545,1777661442000,-1618.91168246,0.00013598,2]
[421444552,1777661442000,-252.12979786,0.00013698,2]
[421444548,1777661442000,-162.141956,0.00013653,2]
[421444541,1777661442000,-168.69,0.00013541,2]
[421444540,1777661442000,-168.69,0.00013541,2]
[421444550,1777661442000,-162.141956,0.00013653,2]
[421444543,1777661442000,-2000.0,0.00013597,2]
[421444544,1777661442000,-14488.36918342,0.00013598,2]
[421444551,1777661442000,-637.44,0.0001369,2]
[421444533,1777661442000,-3649.68067348,0.0001335,2]
[421444542,1777661442000,-150.0,0.00013573,2]
[421444626,1777661443000,-644.05,0.00013698,2]
[421444622,1777661443000,-644.05,0.00013698,2]
[421444628,1777661443000,-644.05,0.00013698,2]
[421444625,1777661443000,-644.05,0.00013698,2]
[421444623,1777661443000,-644.05,0.00013698,2]
[421444631,1777661443000,-644.05,0.00013698,2]
[421444612,1777661443000,-500.0,0.00013698,2]
[421444630,1777661443000,-644.05,0.00013698,2]
[421444627,1777661443000,-644.05,0.00013698,2]
[421444619,1777661443000,-478.0,0.00013698,2]
[421444618,1777661443000,-500.0,0.00013698,2]
[421444624,1777661443000,-644.05,0.00013698,2]
[421444620,1777661443000,-644.05,0.00013698,2]
[421444621,1777661443000,-644.05,0.00013698,2]
[421444643,1777661443000,-644.05,0.00013698,2]
[421444648,1777661443000,-644.05,0.00013698,2]
[421444632,1777661443000,-644.05,0.00013698,2]
[421444647,1777661443000,-644.05,0.00013698,2]
[421444646,1777661443000,-644.05,0.00013698,2]
[421444634,1777661443000,-644.05,0.00013698,2]
[421444649,1777661443000,-644.15569178,0.00013698,2]
[421444650,1777661443000,-500.0,0.00013698,2]
[421444640,1777661443000,-644.05,0.00013698,2]
[421444636,1777661443000,-644.05,0.00013698,2]
[421444642,1777661443000,-644.05,0.00013698,2]
[421444638,1777661443000,-644.05,0.00013698,2]
[421444651,1777661443000,-500.0,0.00013698,2]
[421444653,1777661443000,-500.0,0.00013698,2]
[421444655,1777661443000,-500.0,0.00013698,2]
[421444645,1777661443000,-644.05,0.00013698,2]
[421444611,1777661443000,-500.0,0.00013698,2]
[421444589,1777661443000,-500.0,0.00013698,2]
[421444614,1777661443000,-500.0,0.00013698,2]
[421444657,1777661443000,-500.0,0.00013698,2]
[421444590,1777661443000,-500.0,0.00013698,2]
[421444588,1777661443000,-500.0,0.00013698,2]